bitfinex/quotes_SOLUSD_20250402
["timestamp","ask_amount","ask_price","bid_price","bid_amount"]
[1743631996296,63.05514063,121.78,121.68,95.77993243]
[1743631996685,63.05514063,121.79,121.69,0.42648471]
[1743631996889,161.17514063,121.8,121.69,0.42648471]
[1743631997107,0.063,121.75,121.69,0.42648471]
[1743631997311,0.063,121.75,121.72,0.28432314]
[1743631997484,63.05514063,121.82,121.72,8.43108471]
[1743631997812,63.05514063,121.81,121.72,8.28892314]
[1743631998192,0.063,121.84,121.72,8.28892314]
[1743631998587,63.05514063,121.82,121.74,0.28432314]
[1743631998815,63.05514063,121.83,121.74,4.62538471]
[1743631999196,0.063,121.84,121.76,26.0]
[1743631999400,0.063,121.84,121.77,0.28432314]
[1743631999713,63.11814063,121.84,121.74,4.1989]
[1743632000005,63.05514063,121.83,121.74,4.1989]
[1743632000193,0.063,121.84,121.74,4.1989]
[1743632000388,63.05514063,121.83,121.74,4.1989]
[1743632000616,63.05514063,121.83,121.75,8.2135]
[1743632000915,0.063,121.84,121.8,0.28432314]
[1743632001610,7.6040725,121.91,121.8,0.28432314]
[1743632001831,7.6040725,121.91,121.81,0.14216157]
[1743632002011,0.063,121.94,121.86,0.42648471]
[1743632002192,0.063,121.94,121.86,16.08648471]
[1743632002588,0.063,121.94,121.88,0.14216157]
[1743632002801,0.063,121.94,121.88,0.42648471]
[1743632003308,0.063,121.94,121.87,28.719]
[1743632003837,0.063,121.94,121.88,0.42648471]
[1743632004016,63.11814063,121.97,121.88,0.42648471]
[1743632004714,63.11814063,121.97,121.9,0.28432314]
[1743632004715,0.063,121.97,121.9,0.28432314]
[1743632004917,0.063,121.97,121.93,0.28432314]
[1743632005134,0.063,121.97,121.92,26.0]
[1743632005303,0.063,121.97,121.93,0.42648471]
[1743632005506,0.063,121.97,121.92,26.0]
[1743632006720,0.063,121.97,121.9,0.28432314]
[1743632007118,0.063,121.97,121.9,0.42648471]
[1743632007911,0.063,121.97,121.89,69.7348]
[1743632008109,0.063,121.97,121.92,26.0]
[1743632008819,0.063,121.97,121.93,8.2014]
[1743632009136,0.063,121.97,121.93,28.7049]
[1743632009703,0.063,121.97,121.93,8.2014]
[1743632009904,0.063,121.97,121.88,0.14216157]
[1743632010110,63.05514063,121.95,121.85,0.14216157]
[1743632010334,63.05514063,121.92,121.84,8.2074]
[1743632010526,63.05514063,121.91,121.84,8.2074]
[1743632010834,8.34286157,121.94,121.83,28.7284]
[1743632011135,0.063,121.97,121.87,0.42648471]
[1743632011344,8.2617,121.97,121.85,0.14216157]
[1743632011630,8.2617,121.97,121.87,0.28432314]
[1743632011830,0.063,121.97,121.87,0.42648471]
[1743632012830,0.063,121.97,121.91,26.0]
[1743632013030,0.063,121.97,121.92,0.28432314]
[1743632013230,0.063,121.97,121.92,0.42648471]
[1743632014033,15.26,122.06,121.96,0.28432314]
[1743632014210,352.81014063,122.07,121.96,0.42648471]
[1743632014914,352.81014063,122.07,121.98,0.28432314]
[1743632015113,289.755,122.07,121.98,0.28432314]
[1743632015353,281.563,122.07,121.98,0.42648471]
[1743632015634,0.063,122.07,122.01,0.42648471]
[1743632016609,0.063,122.07,122.06,0.28432314]
[1743632016810,0.0001,122.07,122.06,0.42648471]
[1743632017032,0.063,122.1,122.06,8.61908471]
[1743632017618,0.063,122.1,122.09,26.42648471]
[1743632018236,8.1833,122.2,122.11,26.0]
[1743632018430,8.18,122.25,122.12,0.42648471]
[1743632018630,29.1298,122.25,122.09,0.14216157]
[1743632018838,29.1298,122.25,122.09,0.42648471]
[1743632018839,63.05514063,122.19,122.09,0.42648471]
[1743632019139,63.05514063,122.16,122.02,40.9761]
[1743632019333,63.05514063,122.13,122.03,0.14216157]
[1743632019636,8.1846,122.18,122.05,26.0]
[1743632019844,71.23974063,122.18,122.06,0.14216157]
[1743632020033,63.05514063,122.15,122.05,14.88]
[1743632020232,63.05514063,122.13,122.02,69.6605]
[1743632020428,63.05514063,122.12,122.02,28.6837]
[1743632020624,2.0,122.1,122.02,28.6837]
[1743632021040,2.063,122.1,122.04,8.194]
[1743632022027,2.063,122.1,122.04,28.679]
[1743632022419,2.063,122.1,122.04,8.194]
[1743632022621,63.05514063,122.08,122.01,16.0875]
[1743632022825,63.05514063,122.08,121.96,8.1994]
[1743632022826,63.05514063,122.04,121.96,8.1994]
[1743632023142,63.05514063,122.02,121.92,41.0089]
[1743632023344,71.24984063,122.03,121.93,0.28432314]
[1743632023522,63.05514063,122.02,121.91,0.14216157]
[1743632023726,8.1947,122.03,121.93,26.0]
[1743632023921,63.05514063,122.02,121.93,26.0]
[1743632024127,301.7023,122.06,121.93,26.0]
[1743632024326,281.22,122.06,121.91,0.14216157]
[1743632024528,63.05514063,122.04,121.93,26.0]
[1743632024753,63.05514063,121.99,121.9,28.712]
[1743632025049,63.05514063,121.99,121.92,8.202]
[1743632025222,71.25244063,122.0,121.92,8.202]
[1743632025422,63.05514063,121.99,121.92,8.202]
[1743632025726,63.05514063,121.98,121.92,8.202]
[1743632025921,22.9173,122.0,121.92,8.202]
[1743632026139,14.72,122.0,121.92,8.202]
[1743632026533,14.72,122.0,121.93,0.28432314]
[1743632026742,63.05514063,122.04,121.93,0.42648471]
[1743632026934,2.0,121.98,121.93,0.42648471]
[1743632027142,2.0,121.98,121.95,0.28432314]
[1743632027735,2.0,121.98,121.94,28.7025]
[1743632027931,2.0,121.98,121.94,8.2007]
[1743632029032,4.0,121.98,121.94,8.2007]
[1743632029240,4.0,121.98,121.92,20.505]
[1743632030353,6.0,121.98,121.92,20.505]
[1743632030951,6.0,121.98,121.93,0.28432314]
[1743632031147,6.0,121.98,121.92,28.707]
[1743632031331,6.0,121.98,121.78,16.61485165]
[1743632031332,63.05514063,121.95,121.78,16.61485165]
[1743632031532,63.05514063,121.93,121.85,8.2068]
[1743632031854,26.0,121.93,121.83,8.2076]
[1743632032031,63.05514063,121.91,121.84,8.2372]
[1743632032235,63.05514063,121.92,121.84,8.2372]
[1743632033034,26.0,121.93,121.84,8.2372]
[1743632033235,97.25704063,121.93,121.84,0.03]
[1743632033443,63.05514063,121.92,121.84,0.31432314]
[1743632033757,63.05514063,121.92,121.84,0.03]
[1743632034055,97.25704063,121.93,121.84,0.31432314]
[1743632034251,8.2009,121.94,121.84,0.45648471]
[1743632034470,289.4796,121.96,121.84,0.45648471]
[1743632034753,281.28,121.96,121.85,0.42648471]
[1743632035348,281.28,121.96,121.88,29.00092314]
[1743632035536,6.063,121.98,121.89,0.14216157]
[1743632036244,6.063,121.98,121.92,0.28432314]
[1743632036551,6.063,121.98,121.92,0.42648471]
[1743632037342,6.063,121.98,121.94,0.42648471]
[1743632037538,6.063,121.98,121.94,0.28432314]
[1743632037938,14.2611,121.98,121.89,8.2041]
[1743632038133,87.70514063,121.97,121.89,8.2041]
[1743632038328,63.05514063,121.96,121.89,8.2041]
[1743632038556,63.05514063,121.94,121.86,8.2061]
[1743632038737,63.05514063,121.93,121.86,8.2061]
[1743632038939,63.05514063,121.95,121.87,0.28432314]
[1743632039143,63.05514063,121.97,121.87,0.14216157]
[1743632039364,14.2611,121.98,121.88,8.2047]
[1743632039673,30.0,121.92,121.89,0.42648471]
[1743632039959,14.2611,121.98,121.89,0.42648471]
[1743632039960,14.2611,121.98,121.89,0.28432314]
[1743632040271,6.063,121.98,121.89,0.42648471]
[1743632040650,30.0,121.91,121.9,26.42648471]
[1743632040861,30.0,121.91,121.9,0.28432314]
[1743632041072,30.0,121.91,121.88,8.2047]
[1743632041767,30.0,121.91,121.88,28.7166]
[1743632042165,6.063,121.98,121.92,0.14216157]
[1743632043351,6.063,121.98,121.95,0.28432314]
[1743632044576,5.84111091,121.98,121.95,0.28432314]
[1743632045443,5.84111091,121.98,121.92,28.7071]
[1743632045666,5.84111091,121.98,121.92,8.202]
[1743632045955,5.84111091,121.98,121.93,0.42648471]
[1743632046253,82.1,122.03,121.93,0.42648471]
[1743632046467,145.15514063,122.03,121.93,0.42648471]
[1743632046945,90.2949,122.03,121.93,0.42648471]
[1743632047357,8.1926,122.06,121.97,28.6955]
[1743632047568,71.24774063,122.06,121.97,28.6955]
[1743632047866,8.1926,122.06,121.97,28.6955]
[1743632048088,301.8804,122.07,121.98,0.28432314]
[1743632048089,289.5923,122.07,121.98,0.28432314]
[1743632048377,310.0723,122.07,121.97,28.6955]
[1743632048555,63.05514063,122.05,121.97,28.6955]
[1743632049677,8.1938,122.05,121.97,20.4968]
[1743632049978,71.24894063,122.05,121.97,20.4968]
[1743632050981,344.45514063,122.07,121.98,0.28432314]
[1743632051273,281.4,122.07,121.98,0.42648471]
[1743632051447,281.4,122.07,121.97,28.6955]
[1743632051448,63.05514063,122.06,121.97,28.6955]
[1743632051655,63.05514063,122.04,121.97,8.1987]
[1743632051953,63.05514063,122.02,121.95,8.2]
[1743632052460,76.85514063,122.03,121.95,8.2]
[1743632052660,13.8,122.03,121.95,28.7002]
[1743632052857,281.4,122.07,121.96,0.42648471]
[1743632053163,4.063,122.1,121.99,0.42648471]
[1743632053366,4.063,122.1,122.01,0.42648471]
[1743632053560,4.063,122.1,122.03,0.28432314]
[1743632053872,4.063,122.1,122.03,0.42648471]
[1743632054248,4.063,122.1,122.03,0.28432314]
[1743632054669,4.063,122.1,122.03,0.42648471]
[1743632055066,4.063,122.1,122.03,0.28432314]
[1743632055749,4.063,122.1,122.04,28.679]
[1743632056766,4.063,122.1,122.05,0.42648471]
[1743632056968,4.063,122.1,122.07,0.14216157]
[1743632057270,4.063,122.1,122.05,0.28432314]
[1743632057469,4.063,122.1,122.07,0.14216157]
[1743632057669,4.063,122.1,122.08,8.1913]
[1743632058751,4.063,122.1,122.09,0.42648471]
[1743632058960,0.063,122.13,122.09,0.42648471]
[1743632059458,0.063,122.19,122.12,0.42648471]
[1743632059665,0.063,122.19,122.15,28.6532]
[1743632060183,0.063,122.19,122.16,0.42648471]
[1743632061769,0.063,122.19,122.18,0.28432314]
[1743632061959,0.063,122.19,122.17,8.1853]
[1743632063763,0.063,122.19,122.13,8.1879]
[1743632063964,0.063,122.19,122.04,66.25785078]
[1743632063965,0.063,122.19,122.09,8.1906]
[1743632064172,0.063,122.19,122.09,28.6671]
[1743632064365,0.063,122.19,122.1,0.14216157]
[1743632064677,0.063,122.19,122.13,0.42648471]
[1743632064864,0.063,122.19,122.1,13.44]
[1743632065058,63.11814063,122.19,122.09,28.6671]
[1743632065263,63.05514063,122.18,122.09,28.6671]
[1743632065659,0.063,122.19,122.09,28.6671]
[1743632065866,8.2469,122.19,122.11,8.1893]
[1743632066264,71.30204063,122.19,122.11,8.1893]
[1743632066959,71.30204063,122.19,122.1,0.28432314]
[1743632067377,8.2469,122.19,122.1,0.28432314]
[1743632067875,0.063,122.19,122.1,0.42648471]
[1743632068380,8.247,122.19,122.1,0.42648471]
[1743632068578,8.2469,122.19,122.1,0.28432314]
[1743632068757,8.2469,122.19,122.1,0.42648471]
[1743632069079,8.2469,122.19,122.11,8.1893]
[1743632071287,0.063,122.19,122.11,28.6626]
[1743632071880,0.063,122.19,122.11,8.1893]
[1743632073986,0.063,122.19,122.11,28.6626]
[1743632076160,0.063,122.19,122.13,8.1879]
[1743632076571,0.063,122.19,122.13,28.6578]
[1743632077588,0.063,122.19,122.14,0.28432314]
[1743632077970,0.063,122.19,122.14,0.42648471]
[1743632078192,0.063,122.19,122.15,8.1866]
[1743632079395,63.05514063,122.16,122.07,8.192]
[1743632079690,63.05514063,122.12,122.07,8.192]
[1743632079872,63.05514063,122.12,122.06,16.7952]
[1743632080067,87.70514063,122.16,122.06,16.7952]
[1743632080263,63.05514063,122.12,122.03,28.681]
[1743632080463,53.3032,122.15,122.03,28.681]
[1743632080681,28.6532,122.15,122.11,0.063]
[1743632080880,63.05514063,122.14,122.11,0.063]
[1743632081074,68.23003011,122.14,122.11,0.063]
[1743632081284,63.05514063,122.14,122.11,0.063]
[1743632082075,8.1741,122.34,122.17,24.65]
[1743632082282,28.5899,122.42,122.23,26.0]
[1743632082481,280.94,122.36,122.24,41.36770462]
[1743632082673,280.94,122.36,122.24,12.76]
[1743632083071,63.05514063,122.35,122.23,26.0]
[1743632083294,12.75,122.32,122.2,69.558]
[1743632083470,12.75,122.32,122.2,28.6415]
[1743632083798,63.05514063,122.31,122.2,28.6415]
[1743632084008,0.03,122.32,122.23,26.0]
[1743632084300,0.03,122.32,122.24,28.6321]
[1743632084886,0.03,122.32,122.27,26.0]
[1743632085479,0.03,122.32,122.27,38.66]
[1743632085681,0.03,122.32,122.27,12.66]
[1743632085980,0.03,122.32,122.27,38.66]
[1743632086487,0.03,122.32,122.28,28.6227]
[1743632086787,0.03,122.32,122.3,26.0]
[1743632087669,0.03,122.32,122.28,28.6227]
[1743632090369,0.03,122.32,122.27,26.0]
[1743632090574,0.03,122.32,122.25,12.48]
[1743632091593,0.03,122.32,122.26,8.1792]
[1743632091978,63.08514063,122.32,122.26,8.1792]
[1743632092172,63.08514063,122.32,122.23,20.4531]
[1743632092395,0.03,122.32,122.23,20.4531]
[1743632092975,0.03,122.32,122.26,26.0]
[1743632093185,0.03,122.32,122.23,20.4531]
[1743632093789,0.03,122.32,122.23,28.6973]
[1743632097181,0.03,122.32,122.24,0.42648471]
[1743632097591,0.03,122.32,122.26,0.14216157]
[1743632098881,0.03,122.32,122.26,0.28432314]
[1743632099685,0.03,122.32,122.27,28.6251]
[1743632100378,0.03,122.32,122.27,8.1786]
[1743632100584,63.08514063,122.32,122.24,8.1806]
[1743632100800,75.16514063,122.32,122.24,8.1806]
[1743632101304,12.11,122.32,122.24,8.1806]
[1743632101499,12.11,122.32,122.25,0.42648471]
[1743632101799,0.03,122.32,122.26,8.1792]
[1743632102711,0.03,122.32,122.26,28.6274]
[1743632103079,0.03,122.32,122.28,8.1779]
[1743632104304,0.03,122.32,122.28,28.6227]
[1743632105206,0.03,122.32,122.26,28.6274]
[1743632105909,0.03,122.32,122.27,0.28432314]
[1743632106208,0.03,122.32,122.26,28.6274]
[1743632106377,63.05514063,122.31,122.24,20.4513]
[1743632106580,63.05514063,122.29,122.23,0.063]
[1743632106792,36.6,122.32,122.23,0.063]
[1743632106793,63.05514063,122.27,122.23,0.063]
[1743632106992,63.05514063,122.26,122.23,0.063]
[1743632107199,8.1799,122.25,122.23,0.063]
[1743632107404,71.23464063,122.26,122.23,0.063]
[1743632107707,8.1795,122.26,122.23,0.063]
[1743632107888,8.1788,122.27,122.23,0.063]
[1743632108089,8.1785,122.28,122.2,20.063]
[1743632108499,71.23364063,122.28,122.2,20.063]
[1743632108692,63.05514063,122.27,122.2,20.063]
[1743632109001,63.05514063,122.25,122.2,20.063]
[1743632109182,63.05514063,122.23,122.2,20.063]
[1743632109383,63.05514063,122.22,122.2,20.063]
[1743632109817,0.14216157,122.23,122.2,20.063]
[1743632110008,63.05514063,122.22,122.2,20.063]
[1743632110206,63.05514063,122.21,122.2,20.063]
[1743632111117,8.1826,122.21,122.2,20.063]
[1743632111317,71.23774063,122.21,122.2,20.063]
[1743632111529,8.1826,122.21,122.2,20.063]
[1743632111679,71.3799022,122.21,122.2,20.063]
[1743632111882,0.28432314,122.19,122.11,0.063]
[1743632112107,82.1,122.18,122.11,0.063]
[1743632112407,63.05514063,122.16,122.11,0.063]
[1743632112613,63.05514063,122.15,122.11,0.063]
[1743632113008,343.73514063,122.15,122.11,0.063]
[1743632113190,288.867,122.15,122.11,0.063]
[1743632114031,63.05514063,122.14,122.11,0.063]
[1743632114215,63.05514063,122.12,122.11,0.063]
[1743632114511,94.28216157,122.14,122.11,0.063]
[1743632114897,63.05514063,122.13,122.11,0.063]
[1743632115222,71.24374063,122.12,122.11,0.063]
[1743632115442,71.24374063,122.12,122.1,0.063]
[1743632115443,0.14216157,122.11,122.1,0.063]
[1743632115611,63.1973022,122.11,122.1,0.063]
[1743632115815,26.0,122.08,122.07,0.063]
[1743632116019,101.49514063,122.08,122.07,0.063]
[1743632116227,38.58216157,122.08,121.98,0.063]
[1743632116435,26.0,122.04,121.98,0.063]
[1743632116609,63.05514063,122.04,121.98,0.063]
[1743632116810,63.05514063,121.99,121.98,0.063]
[1743632117250,153.35244063,121.99,121.98,0.063]
[1743632117553,90.58162314,121.99,121.98,0.063]
[1743632117723,82.1,121.99,121.98,0.063]
[1743632118043,12.56,122.0,121.98,0.063]
[1743632118232,82.1,122.03,121.98,0.063]
[1743632118643,63.05514063,122.02,121.98,0.063]
[1743632118947,82.1,122.03,121.98,0.063]
[1743632119434,8.123,122.08,121.98,26.48948471]
[1743632119435,82.1,122.08,121.98,26.48948471]
[1743632119642,75.81514063,122.12,121.98,26.48948471]
[1743632119827,82.1,122.13,121.98,26.48948471]
[1743632120029,82.1,122.13,122.03,0.14216157]
[1743632120231,82.1,122.13,122.06,26.0]
[1743632120437,280.92,122.16,122.07,0.42648471]
[1743632120620,90.2808,122.24,122.11,0.14216157]
[1743632120821,82.1,122.24,122.11,0.42648471]
[1743632121055,153.33574063,122.24,122.11,0.42648471]
[1743632121219,153.33574063,122.24,122.13,0.28432314]
[1743632121419,63.05514063,122.22,122.12,8.1886]
[1743632121950,103.1006,122.24,122.12,8.1886]
[1743632122149,63.05514063,122.23,122.12,28.6602]
[1743632122324,63.05514063,122.22,122.12,8.1886]
[1743632122521,63.05514063,122.19,122.11,8.1891]
[1743632122728,63.05514063,122.18,122.08,8.4093]
[1743632123457,63.05514063,122.14,122.06,4.3886]
[1743632123634,63.05514063,122.12,122.02,8.1953]
[1743632123837,12.8,122.14,122.02,30.0]
[1743632123838,63.05514063,122.1,122.02,30.0]
[1743632124155,12.94216157,122.14,122.02,30.0]
[1743632124156,63.05514063,122.08,122.02,30.0]
[1743632124324,0.14216157,122.12,122.02,30.0]
[1743632124643,82.1,122.13,122.02,30.0]
[1743632124842,63.05514063,122.09,121.99,4.0608]
[1743632125140,0.14216157,122.09,122.0,30.0]
[1743632125337,8.1913,122.08,122.0,30.0]
[1743632125553,63.05514063,122.05,122.0,30.0]
[1743632125722,82.1,122.04,121.98,0.063]
[1743632125922,82.1,122.03,121.98,30.063]
[1743632126319,82.1,122.03,121.98,0.063]
[1743632128050,145.15514063,122.02,121.98,0.063]
[1743632128434,82.1,122.02,121.98,0.063]
[1743632129748,280.96,122.05,121.98,0.063]
[1743632130126,344.01514063,122.05,121.98,0.063]
[1743632130431,63.05514063,122.04,121.98,0.063]
[1743632131031,289.1533,122.05,121.98,0.063]
[1743632131240,63.05514063,122.04,121.98,0.063]
[1743632131437,280.96,122.05,121.98,0.063]
[1743632131953,63.05514063,122.03,121.98,0.063]
[1743632132131,63.05514063,122.01,121.98,0.063]
[1743632132329,63.05514063,121.99,121.98,0.063]
[1743632132539,63.05514063,121.99,121.94,0.03]
[1743632132540,82.24216157,121.98,121.94,0.03]
[1743632132735,63.05514063,121.95,121.94,0.03]
[1743632132948,82.24216157,121.94,121.89,0.03]
[1743632133154,63.05514063,121.9,121.89,0.03]
[1743632133363,82.1,121.93,121.89,0.03]
[1743632134041,63.05514063,121.92,121.89,0.03]
[1743632134265,82.1,121.91,121.89,0.03]
[1743632134443,63.05514063,121.9,121.89,0.03]
[1743632134946,82.1,121.95,121.89,0.03]
[1743632135157,281.14,121.96,121.89,0.03]
[1743632135158,281.14,121.96,121.89,26.03]
[1743632135450,82.1,122.01,121.93,26.0]
[1743632135833,82.1,122.01,121.94,0.28432314]
[1743632136037,82.1,122.01,121.93,26.0]
[1743632136240,63.05514063,121.99,121.92,13.16432314]
[1743632136434,82.1,122.01,121.92,13.16432314]
[1743632136642,145.15514063,122.01,121.92,13.16432314]
[1743632136846,82.1,122.01,121.92,13.16432314]
[1743632137045,145.15514063,122.01,121.92,12.88]
[1743632137356,63.05514063,122.0,121.93,8.2014]
[1743632137554,63.05514063,122.0,121.91,4.1266]
[1743632137555,82.1,121.99,121.91,8.2021]
[1743632138062,63.05514063,121.97,121.89,8.2339]
[1743632138239,63.05514063,121.96,121.89,8.2339]
[1743632138441,63.05514063,121.97,121.89,8.2339]
[1743632138653,82.1,121.98,121.89,8.2339]
[1743632138957,63.05514063,121.97,121.89,8.2339]
[1743632139156,82.1,121.98,121.89,0.03]
[1743632139457,63.05514063,121.97,121.89,0.03]
[1743632139638,90.298,121.98,121.89,0.03]
[1743632139840,63.05514063,121.97,121.89,0.03]
[1743632140353,63.05514063,121.93,121.89,0.03]
[1743632141053,63.05514063,121.94,121.89,0.03]
[1743632141260,63.05514063,121.91,121.89,0.03]
[1743632141454,8.2008,121.94,121.89,0.03]
[1743632141656,82.1,121.93,121.89,0.03]
[1743632141852,145.15514063,121.93,121.89,0.03]
[1743632142049,281.32,121.95,121.89,0.03]
[1743632142252,82.1,121.97,121.89,0.45648471]
[1743632142435,90.2949,122.03,121.89,0.45648471]
[1743632142636,82.1,122.03,121.9,34.5642]
[1743632142842,82.1,122.07,121.95,0.42648471]
[1743632143136,82.1,122.07,121.94,26.0]
[1743632143137,82.1,122.13,121.99,0.42648471]
[1743632143337,82.1,122.13,122.04,0.28432314]
[1743632143544,82.1,122.13,122.04,0.42648471]
[1743632143742,90.288,122.13,122.04,0.28432314]
[1743632143944,63.05514063,122.09,122.01,4.198]
[1743632144148,82.1,122.12,122.01,30.198]
[1743632144350,63.05514063,122.09,122.02,0.28432314]
[1743632144545,63.05514063,122.1,122.01,30.198]
[1743632144869,63.05514063,122.08,122.01,4.198]
[1743632145045,63.05514063,122.07,121.99,0.28432314]
[1743632145249,63.05514063,122.07,121.98,34.34016157]
[1743632145250,63.05514063,122.06,121.98,26.0]
[1743632145445,63.05514063,122.02,121.95,4.192]
[1743632145662,63.05514063,122.01,121.93,8.2011]
[1743632146038,63.05514063,121.98,121.89,4.2768]
[1743632146554,63.05514063,121.97,121.89,4.2768]
[1743632146957,63.05514063,121.9,121.89,0.03]
[1743632147166,76.55514063,121.9,121.89,0.03]
[1743632147348,76.6973022,121.9,121.89,0.03]
[1743632147659,82.24216157,121.89,121.85,0.063]
[1743632148354,63.05514063,121.86,121.85,0.063]
[1743632148756,126.11028126,121.86,121.85,0.063]
[1743632148939,134.31638126,121.86,121.85,0.063]
[1743632149139,71.26124063,121.86,121.85,0.063]
[1743632149446,63.05514063,121.86,121.85,0.063]
[1743632149661,126.25244283,121.86,121.85,0.063]
[1743632149859,0.14216157,121.85,121.84,0.03]
[1743632150160,0.28432314,121.84,121.79,0.03]
[1743632150346,13.6,121.85,121.79,0.03]
[1743632150543,63.05514063,121.92,121.79,0.03]
[1743632150758,13.64,121.94,121.83,26.0]
[1743632150953,63.05514063,121.93,121.85,0.28432314]
[1743632151175,63.05514063,121.95,121.88,0.28432314]
[1743632151350,63.05514063,121.96,121.88,0.28432314]
[1743632151670,344.45514063,121.98,121.87,26.0]
[1743632151863,63.05514063,121.93,121.85,0.28432314]
[1743632152164,344.45514063,121.98,121.87,26.0]
[1743632152165,63.05514063,121.95,121.87,26.0]
[1743632152466,63.05514063,121.98,121.88,0.42648471]
[1743632153044,63.05514063,121.96,121.88,8.2047]
[1743632153245,63.05514063,121.95,121.88,8.2047]
[1743632153446,63.05514063,121.96,121.88,8.2047]
[1743632153667,13.78,122.0,121.89,0.28432314]
[1743632153969,82.1,121.99,121.89,0.28432314]
[1743632154144,63.05514063,121.98,121.88,28.7166]
[1743632154346,82.1,121.99,121.88,28.7166]
[1743632154568,145.15514063,121.98,121.88,8.2047]
[1743632154766,63.05514063,121.95,121.88,8.2047]
[1743632155465,8.1988,121.97,121.88,8.2047]
[1743632155766,63.05514063,121.93,121.87,26.0]
[1743632155959,63.05514063,121.92,121.85,8.2068]
[1743632156165,82.1,121.96,121.85,8.2068]
[1743632156364,145.15514063,121.96,121.86,0.28432314]
[1743632156759,145.15514063,121.96,121.89,0.28432314]
[1743632156760,82.1,121.96,121.89,0.28432314]
[1743632157079,63.05514063,121.99,121.9,28.712]
[1743632157249,8.1968,122.0,121.9,28.712]
[1743632157570,63.05514063,121.99,121.9,28.712]
[1743632158068,90.2962,122.01,121.9,28.712]
[1743632158362,145.15514063,122.01,121.91,0.28432314]
[1743632158569,63.2603022,122.04,121.94,0.42648471]
[1743632158570,0.063,122.04,121.94,0.42648471]
[1743632158865,0.063,122.04,121.97,26.0]
[1743632159052,0.063,122.04,121.98,8.198]
[1743632160265,0.063,122.04,122.01,26.0]
[1743632160978,0.063,122.04,122.02,0.28432314]
[1743632161155,63.05514063,122.14,122.06,26.0]
[1743632161355,0.063,122.17,122.07,0.42648471]
[1743632161746,63.05514063,122.16,122.07,0.28432314]
[1743632162078,63.05514063,122.16,122.06,39.9]
[1743632162284,63.05514063,122.16,122.07,0.28432314]
[1743632162771,0.063,122.17,122.07,0.28432314]
[1743632162955,63.05514063,122.16,122.07,0.28432314]
[1743632163156,63.05514063,122.12,122.01,8.2828]
[1743632163355,63.05514063,122.1,122.02,8.1953]
[1743632164076,63.05514063,122.08,121.99,22.1371]
[1743632164374,14.06216157,122.13,121.99,22.1371]
[1743632164375,63.05514063,122.11,121.99,22.1371]
[1743632164675,63.05514063,122.1,122.02,26.0]
[1743632164973,63.05514063,122.09,122.02,26.0]
[1743632165265,71.24524063,122.1,122.02,8.195]
[1743632165467,82.1,122.12,122.03,0.28432314]
[1743632165878,63.05514063,122.14,122.06,0.28432314]
[1743632166375,8.1866,122.15,122.06,0.28432314]
[1743632166665,63.05514063,122.14,122.06,0.28432314]
[1743632166875,63.05514063,122.13,122.05,26.0]
[1743632167058,71.24484063,122.11,122.04,26.0]
[1743632167448,71.24484063,122.11,122.03,8.1947]
[1743632167652,8.1897,122.11,122.0,13.88]
[1743632167873,8.1897,122.11,122.01,0.14216157]
[1743632168062,63.05514063,122.12,122.03,26.0]
[1743632168378,8.1879,122.13,122.04,0.28432314]
[1743632168590,63.05514063,122.12,122.04,0.28432314]
[1743632169082,71.24444063,122.11,122.04,8.47772314]
[1743632171681,8.191,122.09,122.0,28.6883]